[Event "GrandPrix_29.05"]
[Site "Chess.com"]
[Date "2020.05.29"]
[Round "3"]
[White "tornikesanikidze"]
[Black "Anton_Demchenko"]
[Result "0-1"]
[WhiteElo "2190"]
[BlackElo "2594"]
[TimeControl "600+2"]
[EndTime "10:21:59 PDT"]
[Termination "Anton_Demchenko won by resignation"]

1. d4 {[%clk 0:09:57.4]} 1... Nf6 {[%clk 0:10:00.9]} 2. c4 {[%clk 0:09:57.6]}
2... d6 {[%clk 0:10:02.3]} 3. Nc3 {[%clk 0:09:57.2]} 3... e5 {[%clk 0:10:03]} 4.
Nf3 {[%clk 0:09:57.9]} 4... Nc6 {[%clk 0:10:03.9]} 5. e3 {[%clk 0:09:40.4]} 5...
Be7 {[%clk 0:10:01]} 6. Be2 {[%clk 0:09:35.9]} 6... O-O {[%clk 0:10:01.1]} 7.
O-O {[%clk 0:09:37]} 7... Re8 {[%clk 0:09:54.6]} 8. b3 {[%clk 0:09:35.1]} 8...
exd4 {[%clk 0:09:02.6]} 9. Nxd4 {[%clk 0:09:33.4]} 9... Bf8 {[%clk 0:08:55.8]}
10. Nxc6 {[%clk 0:09:30.9]} 10... bxc6 {[%clk 0:08:56.2]} 11. Bf3 {[%clk
0:09:32.2]} 11... Bd7 {[%clk 0:08:48.7]} 12. Bb2 {[%clk 0:09:29.6]} 12... Rb8
{[%clk 0:08:45.5]} 13. Qd4 {[%clk 0:09:09.9]} 13... c5 {[%clk 0:08:38.3]} 14.
Qf4 {[%clk 0:09:10.9]} 14... h6 {[%clk 0:07:06.2]} 15. Nd5 {[%clk 0:08:54.9]}
15... Nxd5 {[%clk 0:06:50.7]} 16. Bxd5 {[%clk 0:08:56.8]} 16... Be6 {[%clk
0:06:49.9]} 17. Bc6 {[%clk 0:08:46]} 17... Bd7 {[%clk 0:06:50.6]} 18. Bd5 {[%clk
0:07:53.7]} 18... Be6 {[%clk 0:06:44.7]} 19. Bc3 {[%clk 0:07:33.1]} 19... Bxd5
{[%clk 0:05:52.9]} 20. cxd5 {[%clk 0:07:35]} 20... Qd7 {[%clk 0:05:23.2]} 21.
Rad1 {[%clk 0:07:14.5]} 21... Qb5 {[%clk 0:04:37.1]} 22. Rfe1 {[%clk 0:04:41.8]}
22... a5 {[%clk 0:04:12.8]} 23. e4 {[%clk 0:04:41.6]} 23... a4 {[%clk
0:02:39.7]} 24. Re3 {[%clk 0:04:42]} 24... axb3 {[%clk 0:02:29.2]} 25. Rg3
{[%clk 0:04:40.9]} 25... Qe2 {[%clk 0:01:37.5]} 26. Re1 {[%clk 0:03:59.2]} 26...
Qxe1+ {[%clk 0:01:10]} 27. Bxe1 {[%clk 0:03:59.3]} 27... b2 {[%clk 0:01:11.6]}
0-1

[Event "GrandPrix_29.05"]
[Site "Chess.com"]
[Date "2020.05.29"]
[Round "3"]
[White "grunbergmihai"]
[Black "ZefirKa"]
[Result "1-0"]
[WhiteElo "2070"]
[BlackElo "2115"]
[TimeControl "600+2"]
[EndTime "10:21:59 PDT"]
[Termination "grunbergmihai won by resignation"]

1. Nf3 {[%clk 0:10:01.9]} 1... d5 {[%clk 0:09:50.7]} 2. c4 {[%clk 0:09:52]} 2...
dxc4 {[%clk 0:09:45.4]} 3. Qa4+ {[%clk 0:09:50.6]} 3... Bd7 {[%clk 0:09:20.3]}
4. Qxc4 {[%clk 0:09:51]} 4... e6 {[%clk 0:09:21.1]} 5. g3 {[%clk 0:09:44.8]}
5... c5 {[%clk 0:09:18.6]} 6. Bg2 {[%clk 0:09:43.3]} 6... Bc6 {[%clk 0:09:16.2]}
7. O-O {[%clk 0:09:30.9]} 7... Nf6 {[%clk 0:09:11.4]} 8. Nc3 {[%clk 0:09:22.4]}
8... Nbd7 {[%clk 0:08:50.6]} 9. a4 {[%clk 0:09:06.7]} 9... Be7 {[%clk
0:08:40.4]} 10. d4 {[%clk 0:09:03.5]} 10... cxd4 {[%clk 0:08:41.2]} 11. Nxd4
{[%clk 0:09:02.5]} 11... Bxg2 {[%clk 0:08:43.1]} 12. Kxg2 {[%clk 0:09:03]} 12...
O-O {[%clk 0:08:34.3]} 13. Rd1 {[%clk 0:08:58.5]} 13... Rc8 {[%clk 0:08:26.6]}
14. Qb5 {[%clk 0:08:49.3]} 14... Qc7 {[%clk 0:08:15.9]} 15. Bf4 {[%clk
0:08:30.6]} 15... Qc5 {[%clk 0:08:00.2]} 16. Nf3 {[%clk 0:07:25.6]} 16... Nb6
{[%clk 0:07:19.4]} 17. Be3 {[%clk 0:06:22.2]} 17... Qc6 {[%clk 0:07:20.3]} 18.
a5 {[%clk 0:06:07.3]} 18... Nc4 {[%clk 0:07:05.1]} 19. Bxa7 {[%clk 0:05:44.2]}
19... Qxb5 {[%clk 0:07:00.8]} 20. Nxb5 {[%clk 0:05:44.6]} 20... Nxb2 {[%clk
0:07:02.5]} 21. Rdb1 {[%clk 0:05:18.8]} 21... Nc4 {[%clk 0:07:02.3]} 22. Nbd4
{[%clk 0:05:03.8]} 22... Rc7 {[%clk 0:06:41]} 23. Bb6 {[%clk 0:04:02.6]} 23...
Rd7 {[%clk 0:06:23.3]} 24. Rc1 {[%clk 0:03:38]} 24... Nxb6 {[%clk 0:06:02.1]}
25. axb6 {[%clk 0:03:38.1]} 25... Nd5 {[%clk 0:06:03]} 26. Ne5 {[%clk
0:03:20.6]} 26... Rdd8 {[%clk 0:05:57.4]} 27. Ra7 {[%clk 0:03:02.4]} 27... Nxb6
{[%clk 0:05:05.2]} 28. Rxb7 {[%clk 0:02:37.5]} 28... Rxd4 {[%clk 0:04:30.8]} 29.
Nc6 {[%clk 0:02:22]} 29... Rc4 {[%clk 0:03:49]} 30. Nxe7+ {[%clk 0:02:14.6]}
30... Kh8 {[%clk 0:03:50.1]} 31. Rb1 {[%clk 0:01:52.3]} 31... Nd5 {[%clk
0:03:47.6]} 32. Rb8 {[%clk 0:01:43.1]} 1-0

[Event "GrandPrix_29.05"]
[Site "Chess.com"]
[Date "2020.05.29"]
[Round "3"]
[White "Logman74"]
[Black "caspiwins"]
[Result "0-1"]
[WhiteElo "2182"]
[BlackElo "2262"]
[TimeControl "600+2"]
[EndTime "10:22:00 PDT"]
[Termination "caspiwins won by resignation"]

1. e4 {[%clk 0:10:01.9]} 1... d5 {[%clk 0:09:53.7]} 2. exd5 {[%clk 0:10:01.1]}
2... Qxd5 {[%clk 0:09:50.7]} 3. Nc3 {[%clk 0:10:01.9]} 3... Qd6 {[%clk
0:09:51.8]} 4. d4 {[%clk 0:10:00.8]} 4... Nf6 {[%clk 0:09:53.2]} 5. Nf3 {[%clk
0:10:01.4]} 5... a6 {[%clk 0:09:54]} 6. g3 {[%clk 0:09:59.1]} 6... Bg4 {[%clk
0:09:53.4]} 7. Bg2 {[%clk 0:09:58.4]} 7... Nc6 {[%clk 0:09:54.1]} 8. Bf4 {[%clk
0:09:56.3]} 8... Qb4 {[%clk 0:09:47.6]} 9. O-O {[%clk 0:09:37.6]} 9... O-O-O
{[%clk 0:09:46.3]} 10. d5 {[%clk 0:09:30.4]} 10... e5 {[%clk 0:09:35.5]} 11. Bd2
{[%clk 0:08:57]} 11... Nd4 {[%clk 0:09:31.3]} 12. a3 {[%clk 0:05:57.1]} 12...
Qxb2 {[%clk 0:08:16]} 13. Ra2 {[%clk 0:05:47.7]} 13... Qb6 {[%clk 0:08:02.4]}
14. h3 {[%clk 0:05:46.5]} 14... Nxf3+ {[%clk 0:07:41.2]} 15. Bxf3 {[%clk
0:05:44.4]} 15... Bxh3 {[%clk 0:07:42.2]} 16. Re1 {[%clk 0:05:38.8]} 16... Bd6
{[%clk 0:06:15.3]} 17. Na4 {[%clk 0:05:16.1]} 17... Qd4 {[%clk 0:06:04.4]} 18.
c3 {[%clk 0:04:14.6]} 18... Qc4 {[%clk 0:06:04.9]} 19. Qc2 {[%clk 0:03:42.4]}
19... b5 {[%clk 0:05:33.4]} 20. Kh2 {[%clk 0:02:21.2]} 20... Bg4 {[%clk
0:05:23.7]} 21. Bxg4+ {[%clk 0:01:22]} 21... Nxg4+ {[%clk 0:05:23.5]} 22. Kg1
{[%clk 0:01:23.5]} 22... Qxa4 {[%clk 0:05:04.1]} 23. Qf5+ {[%clk 0:01:08.6]}
23... Kb8 {[%clk 0:05:04.9]} 24. c4 {[%clk 0:01:03]} 24... Nf6 {[%clk
0:04:49.3]} 25. Rc1 {[%clk 0:00:57.9]} 25... bxc4 {[%clk 0:04:21.5]} 26. Rac2
{[%clk 0:00:51.1]} 26... Nxd5 {[%clk 0:04:18.6]} 27. Rxc4 {[%clk 0:00:50.3]}
27... Qd7 {[%clk 0:04:10.6]} 28. Ba5 {[%clk 0:00:42.2]} 28... Qxf5 {[%clk
0:04:10.2]} 0-1

[Event "GrandPrix_29.05"]
[Site "Chess.com"]
[Date "2020.05.29"]
[Round "3"]
[White "Korchmar_Vasiliy"]
[Black "Yurovskykh_Alexander"]
[Result "1/2-1/2"]
[WhiteElo "2054"]
[BlackElo "2166"]
[TimeControl "600+2"]
[EndTime "10:22:02 PDT"]
[Termination "Game drawn by repetition"]

1. d4 {[%clk 0:10:01.9]} 1... d5 {[%clk 0:09:56.6]} 2. c4 {[%clk 0:10:01.9]}
2... dxc4 {[%clk 0:09:54.3]} 3. e3 {[%clk 0:10:02.3]} 3... e6 {[%clk 0:09:52.9]}
4. Bxc4 {[%clk 0:10:02.9]} 4... Nf6 {[%clk 0:09:50.1]} 5. Nf3 {[%clk 0:10:03.8]}
5... c5 {[%clk 0:09:49.6]} 6. O-O {[%clk 0:10:04.5]} 6... Nc6 {[%clk 0:09:45.2]}
7. Qe2 {[%clk 0:09:55.8]} 7... cxd4 {[%clk 0:09:41]} 8. Nxd4 {[%clk 0:09:49]}
8... Nxd4 {[%clk 0:09:38.4]} 9. exd4 {[%clk 0:09:50.9]} 9... Be7 {[%clk
0:09:36.1]} 10. Rd1 {[%clk 0:09:43.3]} 10... Bd7 {[%clk 0:09:34.7]} 11. Nc3
{[%clk 0:09:41.5]} 11... Bc6 {[%clk 0:09:35.1]} 12. d5 {[%clk 0:05:59.5]} 12...
Nxd5 {[%clk 0:09:22.5]} 13. Nxd5 {[%clk 0:05:49.7]} 13... exd5 {[%clk
0:09:16.6]} 14. Bxd5 {[%clk 0:05:43.9]} 14... Bxd5 {[%clk 0:09:15.6]} 15. Qb5+
{[%clk 0:05:44.3]} 15... Qd7 {[%clk 0:09:10]} 16. Qxd5 {[%clk 0:05:44.6]} 16...
Rd8 {[%clk 0:08:42.7]} 17. Qxd7+ {[%clk 0:05:40.3]} 17... Rxd7 {[%clk
0:08:44.6]} 18. Be3 {[%clk 0:05:39]} 18... a6 {[%clk 0:08:18.7]} 19. Rac1 {[%clk
0:04:27.1]} 19... Rxd1+ {[%clk 0:07:23.6]} 20. Rxd1 {[%clk 0:04:29]} 20... f6
{[%clk 0:07:08.5]} 21. g3 {[%clk 0:04:17.3]} 21... Rf8 {[%clk 0:06:58.4]} 22.
Bb6 {[%clk 0:03:55.1]} 22... Rf7 {[%clk 0:06:39.2]} 23. Kg2 {[%clk 0:03:46.3]}
23... f5 {[%clk 0:06:35.2]} 24. Rc1 {[%clk 0:03:28.9]} 24... Bd6 {[%clk
0:06:26.6]} 25. Rd1 {[%clk 0:02:52.6]} 25... Rd7 {[%clk 0:06:21.5]} 26. Kf3
{[%clk 0:02:46.9]} 26... Be7 {[%clk 0:06:06]} 27. Rxd7 {[%clk 0:01:51.8]} 27...
Kxd7 {[%clk 0:06:07.9]} 28. Kf4 {[%clk 0:01:52.8]} 28... Ke6 {[%clk 0:06:06.4]}
29. h4 {[%clk 0:01:51.8]} 29... g6 {[%clk 0:06:05.1]} 30. Bd4 {[%clk 0:01:33.9]}
30... Bf8 {[%clk 0:05:53.7]} 31. Kg5 {[%clk 0:01:01.3]} 31... Kf7 {[%clk
0:05:54.1]} 32. h5 {[%clk 0:00:51.5]} 32... Be7+ {[%clk 0:05:22.2]} 33. Kh6
{[%clk 0:00:48.2]} 33... Bf8+ {[%clk 0:05:22.7]} 34. Kg5 {[%clk 0:00:35.2]}
34... Be7+ {[%clk 0:05:23.2]} 35. Kh6 {[%clk 0:00:27.6]} 35... Bf8+ {[%clk
0:04:55]} 36. Kg5 {[%clk 0:00:23.9]} 1/2-1/2

[Event "GrandPrix_29.05"]
[Site "Chess.com"]
[Date "2020.05.29"]
[Round "3"]
[White "esskeettit"]
[Black "MAS_1704"]
[Result "0-1"]
[WhiteElo "2151"]
[BlackElo "2111"]
[TimeControl "600+2"]
[EndTime "10:22:19 PDT"]
[Termination "MAS_1704 won by checkmate"]

1. d4 {[%clk 0:10:01.9]} 1... g6 {[%clk 0:09:57.2]} 2. c4 {[%clk 0:10:02.5]}
2... Bg7 {[%clk 0:09:57.3]} 3. e4 {[%clk 0:10:03.7]} 3... d6 {[%clk 0:09:54.1]}
4. Nf3 {[%clk 0:10:04]} 4... c5 {[%clk 0:09:45.9]} 5. d5 {[%clk 0:09:59.5]} 5...
Nf6 {[%clk 0:09:27.4]} 6. Nc3 {[%clk 0:09:50.1]} 6... O-O {[%clk 0:09:26.8]} 7.
h3 {[%clk 0:09:50.3]} 7... e5 {[%clk 0:09:27.2]} 8. Be2 {[%clk 0:09:10.5]} 8...
Ne8 {[%clk 0:09:20.2]} 9. O-O {[%clk 0:09:04.2]} 9... h6 {[%clk 0:09:09.7]} 10.
a3 {[%clk 0:09:04.5]} 10... f5 {[%clk 0:09:05.6]} 11. b4 {[%clk 0:09:02.6]}
11... Na6 {[%clk 0:08:52.3]} 12. Rb1 {[%clk 0:09:00]} 12... Nf6 {[%clk 0:08:42]}
13. exf5 {[%clk 0:08:08.5]} 13... gxf5 {[%clk 0:08:38.4]} 14. Qc2 {[%clk
0:08:00.1]} 14... Nh7 {[%clk 0:08:06.8]} 15. Re1 {[%clk 0:07:14.7]} 15... b6
{[%clk 0:07:25.1]} 16. Bd2 {[%clk 0:06:47.4]} 16... Kh8 {[%clk 0:07:23.2]} 17.
Nb5 {[%clk 0:06:17.8]} 17... Nc7 {[%clk 0:07:03.5]} 18. bxc5 {[%clk 0:05:52.8]}
18... Nxb5 {[%clk 0:07:00.7]} 19. Rxb5 {[%clk 0:05:38.2]} 19... bxc5 {[%clk
0:06:51.5]} 20. Reb1 {[%clk 0:05:32.9]} 20... e4 {[%clk 0:06:39.3]} 21. Nh2
{[%clk 0:05:00.8]} 21... Qf6 {[%clk 0:06:33.6]} 22. Bf4 {[%clk 0:04:39]} 22...
Qg6 {[%clk 0:06:10.1]} 23. Nf1 {[%clk 0:04:12.9]} 23... Rg8 {[%clk 0:05:21.9]}
24. Ng3 {[%clk 0:04:13.4]} 24... Be5 {[%clk 0:05:18.9]} 25. Bxe5+ {[%clk
0:03:50.9]} 25... dxe5 {[%clk 0:05:19.2]} 26. Qc3 {[%clk 0:03:49.1]} 26... Qd6
{[%clk 0:05:08.1]} 27. Bh5 {[%clk 0:03:21.7]} 27... Nf6 {[%clk 0:05:02.9]} 28.
Bf7 {[%clk 0:03:22.4]} 28... Rg7 {[%clk 0:05:00.3]} 29. Be6 {[%clk 0:03:22.4]}
29... Bxe6 {[%clk 0:04:56.3]} 30. dxe6 {[%clk 0:03:24.3]} 30... Qxe6 {[%clk
0:04:54.6]} 31. Rxc5 {[%clk 0:03:25.1]} 31... Re8 {[%clk 0:04:50.1]} 32. Rbb5
{[%clk 0:03:21.3]} 32... Nd7 {[%clk 0:04:19.1]} 33. Rc7 {[%clk 0:03:22.5]} 33...
Reg8 {[%clk 0:03:54.3]} 34. f4 {[%clk 0:03:10.5]} 34... Rxg3 {[%clk 0:03:48.3]}
35. Qb4 {[%clk 0:02:17.5]} 35... Rxg2+ {[%clk 0:03:38.2]} 36. Kf1 {[%clk
0:02:18.4]} 36... Rg1+ {[%clk 0:03:32.8]} 37. Ke2 {[%clk 0:02:18.2]} 37... R8g2+
{[%clk 0:03:22.2]} 38. Ke3 {[%clk 0:02:19.6]} 38... exf4+ {[%clk 0:03:22.6]} 39.
Kxf4 {[%clk 0:02:07.7]} 39... Rf1+ {[%clk 0:03:17.9]} 40. Ke3 {[%clk 0:02:08.7]}
40... Rf3+ {[%clk 0:03:18.1]} 41. Kd4 {[%clk 0:02:09.9]} 41... Rd3# {[%clk
0:03:18.3]} 0-1

[Event "GrandPrix_29.05"]
[Site "Chess.com"]
[Date "2020.05.29"]
[Round "3"]
[White "GM_Levan_Pantsulaia"]
[Black "Micki-taryan"]
[Result "1-0"]
[WhiteElo "2782"]
[BlackElo "2495"]
[TimeControl "600+2"]
[EndTime "10:22:28 PDT"]
[Termination "GM_Levan_Pantsulaia won by resignation"]

1. Nf3 {[%clk 0:10:01]} 1... d5 {[%clk 0:09:55.5]} 2. g3 {[%clk 0:09:58.8]} 2...
Nc6 {[%clk 0:09:55.9]} 3. c4 {[%clk 0:09:46.1]} 3... d4 {[%clk 0:09:55.3]} 4.
Bg2 {[%clk 0:09:44.6]} 4... e5 {[%clk 0:09:55.6]} 5. d3 {[%clk 0:09:46]} 5...
Nf6 {[%clk 0:09:48.6]} 6. O-O {[%clk 0:09:46.2]} 6... a5 {[%clk 0:09:48.8]} 7.
e3 {[%clk 0:09:35.4]} 7... Be7 {[%clk 0:09:28.5]} 8. exd4 {[%clk 0:09:34.7]}
8... exd4 {[%clk 0:09:30.4]} 9. Na3 {[%clk 0:09:32.5]} 9... Nd7 {[%clk
0:08:53.6]} 10. Nb5 {[%clk 0:09:23.3]} 10... Nc5 {[%clk 0:08:53.5]} 11. Re1
{[%clk 0:09:23.2]} 11... O-O {[%clk 0:08:48.4]} 12. Bf4 {[%clk 0:09:17.1]} 12...
Ne6 {[%clk 0:08:08.7]} 13. Rxe6 {[%clk 0:09:17.3]} 13... fxe6 {[%clk 0:08:06.6]}
14. Bxc7 {[%clk 0:09:13.8]} 14... Qd7 {[%clk 0:07:54]} 15. Qe2 {[%clk
0:08:54.8]} 15... Kh8 {[%clk 0:07:34.7]} 16. Re1 {[%clk 0:08:14.3]} 16... Bf6
{[%clk 0:07:32.9]} 17. a4 {[%clk 0:06:50.7]} 17... Qf7 {[%clk 0:06:24.5]} 18.
Bd6 {[%clk 0:06:37.8]} 18... Rd8 {[%clk 0:06:21.5]} 19. Ne5 {[%clk 0:06:00.8]}
19... Nxe5 {[%clk 0:06:09.5]} 20. Bxe5 {[%clk 0:06:02.2]} 20... Bxe5 {[%clk
0:05:54.8]} 21. Qxe5 {[%clk 0:06:04.1]} 21... Qf6 {[%clk 0:05:51.8]} 22. Qc7
{[%clk 0:05:54.5]} 22... e5 {[%clk 0:05:43.7]} 23. Qxe5 {[%clk 0:05:32.2]} 23...
Bf5 {[%clk 0:05:14.5]} 24. Qxf6 {[%clk 0:05:28.4]} 24... gxf6 {[%clk 0:05:16.4]}
25. Bxb7 {[%clk 0:05:29.7]} 25... Re8 {[%clk 0:05:15.1]} 26. Rd1 {[%clk
0:04:22.5]} 26... Rad8 {[%clk 0:05:08.8]} 27. Bd5 {[%clk 0:03:40.5]} 27... Bg4
{[%clk 0:04:36.7]} 28. f3 {[%clk 0:03:32.5]} 28... Bd7 {[%clk 0:04:24.8]} 29.
Nxd4 {[%clk 0:03:18.9]} 29... Bxa4 {[%clk 0:04:22.7]} 30. Ra1 {[%clk 0:03:18.7]}
30... Bd7 {[%clk 0:04:21]} 31. Rxa5 {[%clk 0:03:03.2]} 31... Re1+ {[%clk
0:04:22.4]} 32. Kf2 {[%clk 0:03:01.7]} 32... Rd1 {[%clk 0:04:19.1]} 33. Ke3
{[%clk 0:02:57.1]} 33... Re8+ {[%clk 0:04:07.6]} 34. Be4 {[%clk 0:02:56.8]}
34... Rh1 {[%clk 0:03:49.9]} 35. h4 {[%clk 0:02:56.6]} 35... Bh3 {[%clk
0:03:42.2]} 36. b4 {[%clk 0:02:44.2]} 36... Rb1 {[%clk 0:03:41.7]} 37. Rb5
{[%clk 0:02:36.3]} 37... Bd7 {[%clk 0:03:39.5]} 38. Rb7 {[%clk 0:02:29.4]} 38...
Bc8 {[%clk 0:03:40.9]} 39. Rb8 {[%clk 0:02:29.9]} 1-0

[Event "GrandPrix_29.05"]
[Site "Chess.com"]
[Date "2020.05.29"]
[Round "3"]
[White "0plaksin0"]
[Black "Misi_95"]
[Result "0-1"]
[WhiteElo "2177"]
[BlackElo "2259"]
[TimeControl "600+2"]
[EndTime "10:22:34 PDT"]
[Termination "Misi_95 won by resignation"]

1. e4 {[%clk 0:10:01.9]} 1... e5 {[%clk 0:09:52.1]} 2. Nc3 {[%clk 0:10:00.6]}
2... Nf6 {[%clk 0:09:49.4]} 3. f4 {[%clk 0:10:01.3]} 3... d5 {[%clk 0:09:45.2]}
4. fxe5 {[%clk 0:10:02.4]} 4... Nxe4 {[%clk 0:09:43.9]} 5. Nf3 {[%clk
0:10:02.6]} 5... Bc5 {[%clk 0:09:35.4]} 6. Qe2 {[%clk 0:10:02.9]} 6... Bf5
{[%clk 0:08:47.1]} 7. d4 {[%clk 0:09:32]} 7... Bb4 {[%clk 0:08:44.4]} 8. Bd2
{[%clk 0:08:44.8]} 8... Bxc3 {[%clk 0:08:35.1]} 9. bxc3 {[%clk 0:07:58.3]} 9...
O-O {[%clk 0:08:33.1]} 10. Qe3 {[%clk 0:07:45]} 10... Nxd2 {[%clk 0:08:18.5]}
11. Qxd2 {[%clk 0:07:19.2]} 11... Be4 {[%clk 0:07:43.2]} 12. Be2 {[%clk
0:06:58]} 12... f6 {[%clk 0:07:27.4]} 13. O-O {[%clk 0:06:53.8]} 13... Nd7
{[%clk 0:07:25]} 14. exf6 {[%clk 0:06:15.6]} 14... Qxf6 {[%clk 0:07:06]} 15. Ne5
{[%clk 0:05:46.9]} 15... Qd6 {[%clk 0:07:06.2]} 16. Nxd7 {[%clk 0:05:25.6]}
16... Qxd7 {[%clk 0:07:08.1]} 17. Bd3 {[%clk 0:05:14]} 17... Qg4 {[%clk
0:06:54.7]} 18. Rae1 {[%clk 0:04:26.5]} 18... Rxf1+ {[%clk 0:06:37.1]} 19. Rxf1
{[%clk 0:04:23.4]} 19... Re8 {[%clk 0:06:38.4]} 20. Qf2 {[%clk 0:03:20]} 20...
Qe6 {[%clk 0:06:33]} 21. Re1 {[%clk 0:02:49.2]} 21... Qg6 {[%clk 0:06:23.3]} 22.
Qg3 {[%clk 0:02:01.2]} 22... Qxg3 {[%clk 0:06:10]} 23. hxg3 {[%clk 0:02:03.1]}
23... Kf7 {[%clk 0:06:10.1]} 24. Bxe4 {[%clk 0:02:01.6]} 24... Rxe4 {[%clk
0:06:00.3]} 25. Rf1+ {[%clk 0:01:26.3]} 25... Kg6 {[%clk 0:05:59.5]} 26. Kf2
{[%clk 0:01:27.7]} 26... Re6 {[%clk 0:05:59.9]} 27. Rb1 {[%clk 0:01:26.2]} 27...
b6 {[%clk 0:05:55.8]} 28. Rd1 {[%clk 0:01:17.4]} 28... Rc6 {[%clk 0:05:55.7]}
29. Rd3 {[%clk 0:01:18.6]} 29... Rc4 {[%clk 0:05:57.3]} 30. Re3 {[%clk
0:01:07.6]} 30... Kf6 {[%clk 0:05:57]} 31. Rf3+ {[%clk 0:01:07.8]} 31... Ke6
{[%clk 0:05:57.7]} 32. Re3+ {[%clk 0:01:09.1]} 32... Kd6 {[%clk 0:05:58.8]} 33.
Rf3 {[%clk 0:01:10.3]} 33... Ra4 {[%clk 0:05:59.6]} 34. Ke2 {[%clk 0:00:19]}
34... Rxa2 {[%clk 0:05:55.4]} 35. Kd2 {[%clk 0:00:20.9]} 35... Ra1 {[%clk
0:05:54.9]} 36. Rf7 {[%clk 0:00:20.7]} 36... g6 {[%clk 0:05:46]} 37. Rxh7 {[%clk
0:00:18.2]} 37... Rg1 {[%clk 0:05:47.4]} 38. Ke3 {[%clk 0:00:06.3]} 38... Rxg2
{[%clk 0:05:45.6]} 39. Kf3 {[%clk 0:00:07.4]} 39... Rxc2 {[%clk 0:05:46.7]} 40.
Rh6 {[%clk 0:00:08.6]} 40... Rxc3+ {[%clk 0:05:47.7]} 41. Kf2 {[%clk 0:00:09.6]}
41... a5 {[%clk 0:05:48]} 42. Rxg6+ {[%clk 0:00:10.9]} 42... Ke7 {[%clk
0:05:49.5]} 43. Rg7+ {[%clk 0:00:10.5]} 43... Kf6 {[%clk 0:05:49.9]} 44. Rd7
{[%clk 0:00:11.7]} 44... Ke6 {[%clk 0:05:48.3]} 45. Rd8 {[%clk 0:00:13]} 45...
a4 {[%clk 0:05:49.7]} 46. Ra8 {[%clk 0:00:14.1]} 46... a3 {[%clk 0:05:50.5]} 47.
g4 {[%clk 0:00:15.1]} 47... b5 {[%clk 0:05:51.7]} 48. g5 {[%clk 0:00:14.5]}
48... b4 {[%clk 0:05:52.7]} 49. Rf8 {[%clk 0:00:07.2]} 49... a2 {[%clk
0:05:52.5]} 50. g6 {[%clk 0:00:07.3]} 50... a1=Q {[%clk 0:05:51.6]} 51. g7
{[%clk 0:00:08.3]} 51... Qb2+ {[%clk 0:05:52.6]} 0-1

[Event "GrandPrix_29.05"]
[Site "Chess.com"]
[Date "2020.05.29"]
[Round "3"]
[White "DenLaz"]
[Black "metra93"]
[Result "1-0"]
[WhiteElo "2553"]
[BlackElo "2482"]
[TimeControl "600+2"]
[EndTime "10:22:38 PDT"]
[Termination "DenLaz won by resignation"]

1. d4 {[%clk 0:10:00.3]} 1... d5 {[%clk 0:09:57.7]} 2. c4 {[%clk 0:10:00.1]}
2... e6 {[%clk 0:09:53.5]} 3. Nf3 {[%clk 0:09:58.1]} 3... Nf6 {[%clk 0:09:53.3]}
4. Nc3 {[%clk 0:09:54]} 4... Bb4 {[%clk 0:09:53.7]} 5. Qa4+ {[%clk 0:09:47.7]}
5... Nc6 {[%clk 0:09:52.7]} 6. e3 {[%clk 0:09:48.9]} 6... O-O {[%clk 0:09:46.2]}
7. Bd2 {[%clk 0:09:47.4]} 7... a6 {[%clk 0:09:38.3]} 8. Qc2 {[%clk 0:09:40.2]}
8... Re8 {[%clk 0:08:52.1]} 9. Rd1 {[%clk 0:08:58.6]} 9... dxc4 {[%clk
0:07:38.8]} 10. Bxc4 {[%clk 0:08:53.9]} 10... b5 {[%clk 0:07:40]} 11. Bd3 {[%clk
0:07:07.7]} 11... Bd6 {[%clk 0:06:47.9]} 12. Ne4 {[%clk 0:06:51.1]} 12... Nb4
{[%clk 0:06:36]} 13. Nxf6+ {[%clk 0:06:28.2]} 13... Qxf6 {[%clk 0:06:33.8]} 14.
Bxb4 {[%clk 0:06:27.9]} 14... Bxb4+ {[%clk 0:06:33.6]} 15. Ke2 {[%clk
0:06:29.4]} 15... e5 {[%clk 0:02:48.6]} 16. Bxh7+ {[%clk 0:05:52.9]} 16... Kh8
{[%clk 0:01:53.6]} 17. dxe5 {[%clk 0:05:51.5]} 17... Qh6 {[%clk 0:01:16.9]} 18.
Be4 {[%clk 0:05:50.1]} 18... Be6 {[%clk 0:01:17.8]} 19. Bd5 {[%clk 0:05:40.9]}
19... Rad8 {[%clk 0:00:46]} 20. Bxe6 {[%clk 0:05:36.7]} 20... Qxe6 {[%clk
0:00:47.9]} 21. b3 {[%clk 0:05:30.9]} 21... Qg4 {[%clk 0:00:29.5]} 22. h3 {[%clk
0:05:15.6]} 22... Qh5 {[%clk 0:00:20.5]} 23. Rxd8 {[%clk 0:05:10]} 23... Rxd8
{[%clk 0:00:21.3]} 24. Rd1 {[%clk 0:05:11.6]} 24... Re8 {[%clk 0:00:21.4]} 25.
Qc6 {[%clk 0:04:46.7]} 25... Re6 {[%clk 0:00:10.3]} 26. Rd8+ {[%clk 0:04:45.5]}
26... Kh7 {[%clk 0:00:11.2]} 27. Qe4+ {[%clk 0:04:47]} 27... g6 {[%clk
0:00:05.2]} 28. Qf4 {[%clk 0:04:45]} 28... Kg7 {[%clk 0:00:04.1]} 29. Rd7 {[%clk
0:04:44.6]} 29... Qf5 {[%clk 0:00:03.7]} 30. Qxf5 {[%clk 0:04:43.1]} 30... gxf5
{[%clk 0:00:05.6]} 31. Rxc7 {[%clk 0:04:44.6]} 31... Rg6 {[%clk 0:00:04.6]} 32.
Nh4 {[%clk 0:04:43.7]} 32... Re6 {[%clk 0:00:03.3]} 33. Nxf5+ {[%clk 0:04:42.3]}
33... Kg6 {[%clk 0:00:05.2]} 34. Nh4+ {[%clk 0:04:40.3]} 34... Kg5 {[%clk
0:00:04.9]} 35. Nf3+ {[%clk 0:04:41.5]} 35... Kf5 {[%clk 0:00:06]} 36. Kd3
{[%clk 0:04:41.1]} 1-0